[Event "Early-Titled-Tuesday-Blitz-January-16-2024"]
[Site "Chess.com"]
[Date "2024.01.16"]
[Round "1"]
[White "campochess"]
[Black "nindjaxx8"]
[Result "0-1"]
[WhiteElo "2100"]
[BlackElo "2568"]
[TimeControl "180+1"]
[EndTime "8:07:48 PST"]
[Termination "nindjaxx8 won on time"]

1. e4 {[%clk 0:02:59.8]} 1... e6 {[%clk 0:02:59.7]} 2. Qe2 {[%clk 0:02:58.7]}
2... c5 {[%clk 0:02:57.8]} 3. c3 {[%clk 0:02:58.1]} 3... Nc6 {[%clk 0:02:57.2]}
4. Nf3 {[%clk 0:02:58.2]} 4... Nf6 {[%clk 0:02:56.8]} 5. d3 {[%clk 0:02:57.7]}
5... d5 {[%clk 0:02:56.8]} 6. Bg5 {[%clk 0:02:56]} 6... Be7 {[%clk 0:02:56.5]}
7. Nbd2 {[%clk 0:02:53.4]} 7... O-O {[%clk 0:02:55.4]} 8. Rd1 {[%clk 0:02:49.8]}
8... Re8 {[%clk 0:02:51]} 9. e5 {[%clk 0:02:44]} 9... Nd7 {[%clk 0:02:50.3]} 10.
Bxe7 {[%clk 0:02:43.7]} 10... Qxe7 {[%clk 0:02:50.7]} 11. d4 {[%clk 0:02:43.9]}
11... cxd4 {[%clk 0:02:43.3]} 12. cxd4 {[%clk 0:02:38.3]} 12... f6 {[%clk
0:02:42.4]} 13. g3 {[%clk 0:02:21]} 13... fxe5 {[%clk 0:02:23.5]} 14. dxe5
{[%clk 0:02:19.3]} 14... Qb4 {[%clk 0:02:23.2]} 15. Bg2 {[%clk 0:02:13.6]} 15...
Qxb2 {[%clk 0:02:19.8]} 16. O-O {[%clk 0:02:11.4]} 16... Ncxe5 {[%clk
0:02:18.8]} 17. Ng5 {[%clk 0:02:07.6]} 17... h6 {[%clk 0:02:13.1]} 18. Nxe6
{[%clk 0:02:05.2]} 18... Nf6 {[%clk 0:01:11.2]} 19. Nc7 {[%clk 0:01:56.6]} 19...
Bg4 {[%clk 0:01:11.3]} 20. Rb1 {[%clk 0:01:09.7]} 20... Qxa2 {[%clk 0:00:49.8]}
21. Qb5 {[%clk 0:01:08]} 21... Qxd2 {[%clk 0:00:48.6]} 22. Nxa8 {[%clk
0:01:06.5]} 22... Rxa8 {[%clk 0:00:46.4]} 23. Qxb7 {[%clk 0:00:58.5]} 23... Rf8
{[%clk 0:00:41.1]} 24. Qxa7 {[%clk 0:00:50.7]} 24... Qg5 {[%clk 0:00:34.8]} 25.
Qe3 {[%clk 0:00:49.6]} 25... Qh5 {[%clk 0:00:33.8]} 26. f4 {[%clk 0:00:45.1]}
26... Nc4 {[%clk 0:00:31.5]} 27. Qd4 {[%clk 0:00:40.1]} 27... Bh3 {[%clk
0:00:30.7]} 28. Rf2 {[%clk 0:00:35]} 28... Bxg2 {[%clk 0:00:30]} 29. Rxg2 {[%clk
0:00:34.5]} 29... Qf5 {[%clk 0:00:30.5]} 30. Re1 {[%clk 0:00:31.5]} 30... Ra8
{[%clk 0:00:26.7]} 31. Rge2 {[%clk 0:00:26.5]} 31... Qd7 {[%clk 0:00:18.3]} 32.
Re7 {[%clk 0:00:25.6]} 32... Qc6 {[%clk 0:00:18.5]} 33. Qd3 {[%clk 0:00:17.8]}
33... Ne4 {[%clk 0:00:15.3]} 34. R1xe4 {[%clk 0:00:15.8]} 34... dxe4 {[%clk
0:00:15.4]} 35. Rxe4 {[%clk 0:00:13.5]} 35... Nd6 {[%clk 0:00:15.3]} 36. Qb3+
{[%clk 0:00:12.1]} 36... Kh8 {[%clk 0:00:13.6]} 37. Re1 {[%clk 0:00:12]} 37...
Qc5+ {[%clk 0:00:13.4]} 38. Kh1 {[%clk 0:00:11.3]} 38... Nc4 {[%clk 0:00:13.8]}
39. Qf3 {[%clk 0:00:10.5]} 39... Rd8 {[%clk 0:00:13.3]} 40. f5 {[%clk
0:00:09.9]} 40... Nd2 {[%clk 0:00:12.9]} 41. Qg2 {[%clk 0:00:07.9]} 41... Qxf5
{[%clk 0:00:12.2]} 42. h4 {[%clk 0:00:05]} 42... Qd3 {[%clk 0:00:11.9]} 43. Re7
{[%clk 0:00:03]} 43... Nf3 {[%clk 0:00:11.6]} 44. Qf2 {[%clk 0:00:01.7]} 44...
Qd5 {[%clk 0:00:09.8]} 45. Kg2 {[%clk 0:00:01]} 45... Ne5+ {[%clk 0:00:09.8]}
0-1

[Event "Early-Titled-Tuesday-Blitz-January-16-2024"]
[Site "Chess.com"]
[Date "2024.01.16"]
[Round "1"]
[White "MdChess1734"]
[Black "BursaBBSatranc"]
[Result "0-1"]
[WhiteElo "2386"]
[BlackElo "2715"]
[TimeControl "180+1"]
[EndTime "8:07:49 PST"]
[Termination "BursaBBSatranc won by resignation"]

1. e4 {[%clk 0:02:59.8]} 1... e5 {[%clk 0:02:59.3]} 2. Nf3 {[%clk 0:02:59.3]}
2... Nf6 {[%clk 0:02:58.7]} 3. Nxe5 {[%clk 0:02:58.3]} 3... d6 {[%clk
0:02:58.9]} 4. Nf3 {[%clk 0:02:58.1]} 4... Nxe4 {[%clk 0:02:58.8]} 5. Nc3 {[%clk
0:02:58.4]} 5... Nxc3 {[%clk 0:02:58.3]} 6. dxc3 {[%clk 0:02:59]} 6... Be7
{[%clk 0:02:58.3]} 7. Bd3 {[%clk 0:02:58.3]} 7... Nc6 {[%clk 0:02:59]} 8. Bf4
{[%clk 0:02:52.2]} 8... Be6 {[%clk 0:02:58]} 9. Qd2 {[%clk 0:02:51.7]} 9... Qd7
{[%clk 0:02:57.3]} 10. O-O-O {[%clk 0:02:49.5]} 10... O-O-O {[%clk 0:02:57.3]}
11. Kb1 {[%clk 0:02:46.9]} 11... a6 {[%clk 0:02:57.1]} 12. Rhe1 {[%clk
0:02:46.4]} 12... Rhe8 {[%clk 0:02:54.2]} 13. Nd4 {[%clk 0:02:43.2]} 13... Nxd4
{[%clk 0:02:53.7]} 14. cxd4 {[%clk 0:02:43.3]} 14... Qa4 {[%clk 0:02:28.4]} 15.
d5 {[%clk 0:01:57.6]} 15... Bxd5 {[%clk 0:01:55.3]} 16. Bf5+ {[%clk 0:01:56.4]}
16... Be6 {[%clk 0:01:55.6]} 17. Bxe6+ {[%clk 0:01:56.6]} 17... fxe6 {[%clk
0:01:56.5]} 18. Rxe6 {[%clk 0:01:56.9]} 18... Bf6 {[%clk 0:01:52.6]} 19. Rde1
{[%clk 0:01:41.8]} 19... Rxe6 {[%clk 0:01:51.4]} 20. Rxe6 {[%clk 0:01:40.9]}
20... Qb5 {[%clk 0:01:47.8]} 21. b3 {[%clk 0:01:22.6]} 21... Qf1+ {[%clk
0:01:35.4]} 22. Re1 {[%clk 0:01:14.5]} 22... Qxg2 {[%clk 0:01:35]} 23. Bg3
{[%clk 0:01:15]} 23... Qc6 {[%clk 0:01:31.5]} 24. Qd3 {[%clk 0:01:09.5]} 24...
Qc5 {[%clk 0:01:25.7]} 25. Re3 {[%clk 0:00:45.3]} 25... h6 {[%clk 0:01:19.5]}
26. Rf3 {[%clk 0:00:37.9]} 26... Re8 {[%clk 0:01:11.8]} 27. Re3 {[%clk
0:00:35.6]} 27... Rxe3 {[%clk 0:01:11.2]} 28. Qxe3 {[%clk 0:00:35.5]} 28... Qxe3
{[%clk 0:01:07.6]} 29. fxe3 {[%clk 0:00:35.4]} 29... Be5 {[%clk 0:00:58.5]} 30.
Bxe5 {[%clk 0:00:27.3]} 30... dxe5 {[%clk 0:00:59.4]} 31. Kc1 {[%clk 0:00:27.8]}
31... e4 {[%clk 0:00:49.7]} 32. Kd2 {[%clk 0:00:26.5]} 32... Kd7 {[%clk
0:00:49]} 33. Ke2 {[%clk 0:00:23.4]} 33... Ke6 {[%clk 0:00:48.3]} 34. c4 {[%clk
0:00:21.9]} 34... c5 {[%clk 0:00:43.9]} 35. a4 {[%clk 0:00:19.5]} 35... b6
{[%clk 0:00:39.4]} 36. Kf2 {[%clk 0:00:18.9]} 36... Kf5 {[%clk 0:00:39.4]} 37.
Kg3 {[%clk 0:00:18.8]} 37... Kg5 {[%clk 0:00:31.2]} 38. Kh3 {[%clk 0:00:17.6]}
38... h5 {[%clk 0:00:26.9]} 39. Kg3 {[%clk 0:00:17.6]} 39... h4+ {[%clk
0:00:27.4]} 40. Kh3 {[%clk 0:00:17.7]} 40... Kh5 {[%clk 0:00:26.7]} 41. Kg2
{[%clk 0:00:18]} 41... g5 {[%clk 0:00:27.1]} 42. Kf2 {[%clk 0:00:18.4]} 42...
Kg4 {[%clk 0:00:24.7]} 43. Kg2 {[%clk 0:00:18.5]} 43... h3+ {[%clk 0:00:25.2]}
44. Kf2 {[%clk 0:00:18.9]} 44... Kh4 {[%clk 0:00:25.8]} 45. Kg1 {[%clk
0:00:17.4]} 45... g4 {[%clk 0:00:25.5]} 46. Kf2 {[%clk 0:00:17.9]} 46... g3+
{[%clk 0:00:25.5]} 47. hxg3+ {[%clk 0:00:17.9]} 47... Kg4 {[%clk 0:00:25.9]} 48.
Kg1 {[%clk 0:00:13.9]} 48... Kxg3 {[%clk 0:00:25.9]} 0-1

[Event "Early-Titled-Tuesday-Blitz-January-16-2024"]
[Site "Chess.com"]
[Date "2024.01.16"]
[Round "1"]
[White "Batcu"]
[Black "MokshAD1603"]
[Result "0-1"]
[WhiteElo "2242"]
[BlackElo "2606"]
[TimeControl "180+1"]
[EndTime "8:07:49 PST"]
[Termination "MokshAD1603 won on time"]

1. d4 {[%clk 0:03:00.9]} 1... Nf6 {[%clk 0:02:46.7]} 2. c4 {[%clk 0:03:00.3]}
2... g6 {[%clk 0:02:41.6]} 3. Nc3 {[%clk 0:02:59.9]} 3... d5 {[%clk 0:02:38.4]}
4. cxd5 {[%clk 0:02:58.5]} 4... Nxd5 {[%clk 0:02:35.9]} 5. e4 {[%clk 0:02:57.4]}
5... Nxc3 {[%clk 0:02:34.8]} 6. bxc3 {[%clk 0:02:57.8]} 6... Bg7 {[%clk
0:02:29.7]} 7. Be3 {[%clk 0:02:57.4]} 7... c5 {[%clk 0:02:24.9]} 8. Be2 {[%clk
0:02:56.6]} 8... cxd4 {[%clk 0:02:05.9]} 9. cxd4 {[%clk 0:02:56.5]} 9... Qa5+
{[%clk 0:02:04]} 10. Qd2 {[%clk 0:02:56.7]} 10... Qxd2+ {[%clk 0:01:44.5]} 11.
Kxd2 {[%clk 0:02:56.8]} 11... Nc6 {[%clk 0:01:40.8]} 12. Nf3 {[%clk 0:02:53.4]}
12... Bg4 {[%clk 0:01:29.9]} 13. e5 {[%clk 0:02:53]} 13... Rd8 {[%clk
0:01:23.1]} 14. Bb5 {[%clk 0:02:49.8]} 14... O-O {[%clk 0:01:16.7]} 15. Bxc6
{[%clk 0:02:47.7]} 15... bxc6 {[%clk 0:01:17.6]} 16. Ke2 {[%clk 0:02:41]} 16...
c5 {[%clk 0:01:13]} 17. dxc5 {[%clk 0:02:38.9]} 17... Bxe5 {[%clk 0:01:11.7]}
18. Rab1 {[%clk 0:02:31.8]} 18... Bf6 {[%clk 0:01:03.1]} 19. Rb7 {[%clk
0:02:22.5]} 19... Be6 {[%clk 0:01:02.2]} 20. Rc1 {[%clk 0:02:18.5]} 20... a5
{[%clk 0:01:01]} 21. Ra7 {[%clk 0:02:02.5]} 21... Ra8 {[%clk 0:00:54.5]} 22.
Rxa8 {[%clk 0:01:59.3]} 22... Rxa8 {[%clk 0:00:55.4]} 23. c6 {[%clk 0:01:59.7]}
23... Bxa2 {[%clk 0:00:54.6]} 24. c7 {[%clk 0:01:41.1]} 24... Be6 {[%clk
0:00:54.6]} 25. Rd1 {[%clk 0:01:31]} 25... Rc8 {[%clk 0:00:48.6]} 26. Bh6 {[%clk
0:01:24.6]} 26... Bc4+ {[%clk 0:00:39.9]} 27. Ke3 {[%clk 0:01:22.4]} 27... e6
{[%clk 0:00:40]} 28. Rd7 {[%clk 0:00:57]} 28... Bb5 {[%clk 0:00:34.8]} 29. Rd1
{[%clk 0:00:41.5]} 29... Rxc7 {[%clk 0:00:34.8]} 30. Rb1 {[%clk 0:00:41.4]}
30... Rb7 {[%clk 0:00:31.4]} 31. Nd4 {[%clk 0:00:39.2]} 31... Bc6 {[%clk
0:00:27]} 32. Rc1 {[%clk 0:00:35.7]} 32... Bd7 {[%clk 0:00:27.6]} 33. Nc2 {[%clk
0:00:25.7]} 33... a4 {[%clk 0:00:25]} 34. Rd1 {[%clk 0:00:22.2]} 34... Bg7
{[%clk 0:00:23.3]} 35. Bg5 {[%clk 0:00:21.6]} 35... h6 {[%clk 0:00:23.5]} 36.
Bf4 {[%clk 0:00:21.3]} 36... e5 {[%clk 0:00:22]} 37. Bg3 {[%clk 0:00:21.3]}
37... Rc7 {[%clk 0:00:19.6]} 38. Na3 {[%clk 0:00:20.9]} 38... Rc3+ {[%clk
0:00:19.6]} 39. Rd3 {[%clk 0:00:21.4]} 39... Rxd3+ {[%clk 0:00:19.5]} 40. Kxd3
{[%clk 0:00:22.3]} 40... Bf8 {[%clk 0:00:20.3]} 41. Nc4 {[%clk 0:00:20.2]} 41...
f6 {[%clk 0:00:20.9]} 42. Kc3 {[%clk 0:00:19.6]} 42... a3 {[%clk 0:00:21.3]} 43.
f3 {[%clk 0:00:15.5]} 43... Be6 {[%clk 0:00:20.8]} 44. Nd2 {[%clk 0:00:14]}
44... Bb4+ {[%clk 0:00:19.3]} 0-1

[Event "Early-Titled-Tuesday-Blitz-January-16-2024"]
[Site "Chess.com"]
[Date "2024.01.16"]
[Round "1"]
[White "kaanadayhamle"]
[Black "Alexchess1984"]
[Result "1-0"]
[WhiteElo "2394"]
[BlackElo "2687"]
[TimeControl "180+1"]
[EndTime "8:07:52 PST"]
[Termination "kaanadayhamle won by resignation"]

1. Nf3 {[%clk 0:02:55.5]} 1... Nf6 {[%clk 0:02:59.2]} 2. g3 {[%clk 0:02:50.8]}
2... g6 {[%clk 0:02:57.6]} 3. Bg2 {[%clk 0:02:50.5]} 3... Bg7 {[%clk 0:02:57.9]}
4. O-O {[%clk 0:02:48.2]} 4... O-O {[%clk 0:02:58.3]} 5. d4 {[%clk 0:02:44.1]}
5... d5 {[%clk 0:02:56.7]} 6. Bf4 {[%clk 0:02:39.6]} 6... c5 {[%clk 0:02:48.5]}
7. c3 {[%clk 0:02:31]} 7... cxd4 {[%clk 0:02:47.7]} 8. cxd4 {[%clk 0:02:26.2]}
8... Ne4 {[%clk 0:02:47.3]} 9. Nc3 {[%clk 0:02:25.4]} 9... Nxc3 {[%clk 0:02:47]}
10. bxc3 {[%clk 0:02:26.3]} 10... Nc6 {[%clk 0:02:47.2]} 11. Ne5 {[%clk
0:02:24.1]} 11... Nxe5 {[%clk 0:02:43.5]} 12. dxe5 {[%clk 0:02:18]} 12... e6
{[%clk 0:02:43.7]} 13. Qd4 {[%clk 0:02:07.5]} 13... Qc7 {[%clk 0:02:39.3]} 14.
Rfc1 {[%clk 0:01:47.4]} 14... b5 {[%clk 0:02:30.1]} 15. a4 {[%clk 0:01:36.3]}
15... Bd7 {[%clk 0:02:29.4]} 16. axb5 {[%clk 0:01:30.8]} 16... Bxb5 {[%clk
0:02:28.8]} 17. e4 {[%clk 0:01:18.1]} 17... dxe4 {[%clk 0:02:19.9]} 18. Bxe4
{[%clk 0:01:19]} 18... Rad8 {[%clk 0:01:39.1]} 19. Qxa7 {[%clk 0:01:16.3]} 19...
Qc4 {[%clk 0:01:36.6]} 20. Bg2 {[%clk 0:01:08.4]} 20... Bc6 {[%clk 0:01:29]} 21.
Bxc6 {[%clk 0:01:00]} 21... Qxc6 {[%clk 0:01:29.9]} 22. c4 {[%clk 0:00:37.2]}
22... h5 {[%clk 0:01:28.7]} 23. h4 {[%clk 0:00:34.6]} 23... Qe4 {[%clk
0:01:26.4]} 24. Qe3 {[%clk 0:00:20.6]} 24... Qxe3 {[%clk 0:01:25.1]} 25. fxe3
{[%clk 0:00:21.5]} 25... Rd2 {[%clk 0:01:17.1]} 26. c5 {[%clk 0:00:19.8]} 26...
Rc8 {[%clk 0:01:05.5]} 27. c6 {[%clk 0:00:20.2]} 27... Bf8 {[%clk 0:01:05.6]}
28. Ra4 {[%clk 0:00:16]} 28... Be7 {[%clk 0:01:01]} 29. Rac4 {[%clk 0:00:15.5]}
29... Rc7 {[%clk 0:01:00.3]} 30. R4c2 {[%clk 0:00:14.2]} 30... Rxc2 {[%clk
0:00:57.3]} 31. Rxc2 {[%clk 0:00:15.1]} 31... Kf8 {[%clk 0:00:57.1]} 32. Kf2
{[%clk 0:00:14.8]} 32... Ke8 {[%clk 0:00:57.4]} 33. Kf3 {[%clk 0:00:15.2]} 33...
Kd8 {[%clk 0:00:56.7]} 34. e4 {[%clk 0:00:15.6]} 34... Kc8 {[%clk 0:00:55.5]}
35. Be3 {[%clk 0:00:16.2]} 35... Kb8 {[%clk 0:00:52.2]} 36. Bb6 {[%clk
0:00:13.9]} 36... Rc8 {[%clk 0:00:52.6]} 37. Kf4 {[%clk 0:00:13.1]} 37... Ka8
{[%clk 0:00:48.7]} 38. Be3 {[%clk 0:00:11.5]} 38... Bd8 {[%clk 0:00:45.9]} 39.
Bf2 {[%clk 0:00:05.4]} 39... Kb8 {[%clk 0:00:37.5]} 40. Be3 {[%clk 0:00:04.7]}
40... Kc7 {[%clk 0:00:36.7]} 41. Bd2 {[%clk 0:00:03.9]} 41... Ra8 {[%clk
0:00:35.5]} 42. Bb4 {[%clk 0:00:04.3]} 42... Kc8 {[%clk 0:00:32.3]} 43. Bd6
{[%clk 0:00:04.9]} 43... Bc7 {[%clk 0:00:31.2]} 44. Kg5 {[%clk 0:00:05]} 44...
Bd8+ {[%clk 0:00:30.6]} 45. Kh6 {[%clk 0:00:05.4]} 45... Ra4 {[%clk 0:00:28]}
46. Kg7 {[%clk 0:00:05]} 46... Rxe4 {[%clk 0:00:26.8]} 47. Kxf7 {[%clk
0:00:05.6]} 47... Rg4 {[%clk 0:00:26.3]} 48. Rc3 {[%clk 0:00:05.6]} 48... g5
{[%clk 0:00:24.3]} 49. c7 {[%clk 0:00:05.9]} 49... Rxh4 {[%clk 0:00:23.1]} 50.
cxd8=Q+ {[%clk 0:00:06]} 50... Kxd8 {[%clk 0:00:22.4]} 51. gxh4 {[%clk
0:00:06.8]} 1-0

[Event "Early-Titled-Tuesday-Blitz-January-16-2024"]
[Site "Chess.com"]
[Date "2024.01.16"]
[Round "1"]
[White "Arystanner"]
[Black "01Roman"]
[Result "1-0"]
[WhiteElo "2810"]
[BlackElo "2438"]
[TimeControl "180+1"]
[EndTime "8:07:54 PST"]
[Termination "Arystanner won on time"]

1. d4 {[%clk 0:03:00.9]} 1... Nf6 {[%clk 0:02:59.3]} 2. c4 {[%clk 0:03:01.5]}
2... c5 {[%clk 0:02:59.9]} 3. d5 {[%clk 0:03:01.7]} 3... e5 {[%clk 0:03:00.6]}
4. Nc3 {[%clk 0:02:59.1]} 4... d6 {[%clk 0:03:01.1]} 5. e4 {[%clk 0:02:59.6]}
5... Nbd7 {[%clk 0:03:00.3]} 6. Be2 {[%clk 0:02:58.6]} 6... a6 {[%clk
0:02:58.1]} 7. a4 {[%clk 0:02:57.7]} 7... Be7 {[%clk 0:02:58.2]} 8. g4 {[%clk
0:02:55.1]} 8... h6 {[%clk 0:02:57.5]} 9. h4 {[%clk 0:02:55.5]} 9... Nf8 {[%clk
0:02:55.8]} 10. Be3 {[%clk 0:02:41.1]} 10... Ng6 {[%clk 0:02:54.4]} 11. f3
{[%clk 0:02:31.3]} 11... Nd7 {[%clk 0:02:32.7]} 12. h5 {[%clk 0:02:30.7]} 12...
Nf4 {[%clk 0:02:29.9]} 13. Kd2 {[%clk 0:02:28.4]} 13... Bg5 {[%clk 0:02:29.3]}
14. Kc2 {[%clk 0:02:20.2]} 14... Rb8 {[%clk 0:02:28.4]} 15. Bxf4 {[%clk
0:02:19.3]} 15... exf4 {[%clk 0:02:28]} 16. Nh3 {[%clk 0:02:17.4]} 16... Ne5
{[%clk 0:02:28.1]} 17. Nf2 {[%clk 0:02:17.9]} 17... Bd7 {[%clk 0:02:25.8]} 18.
Nd3 {[%clk 0:02:17.8]} 18... Qe7 {[%clk 0:02:24.8]} 19. Nxe5 {[%clk 0:02:15.8]}
19... Qxe5 {[%clk 0:02:24.3]} 20. Qd3 {[%clk 0:02:11.2]} 20... Bf6 {[%clk
0:02:18.8]} 21. Ra3 {[%clk 0:02:07.6]} 21... b5 {[%clk 0:02:02.1]} 22. axb5
{[%clk 0:02:01.2]} 22... axb5 {[%clk 0:02:03]} 23. cxb5 {[%clk 0:01:43]} 23...
O-O {[%clk 0:01:56.6]} 24. Rb1 {[%clk 0:01:30.4]} 24... c4 {[%clk 0:01:51.8]}
25. Qxc4 {[%clk 0:01:17.5]} 25... Rfc8 {[%clk 0:01:52.3]} 26. Qb4 {[%clk
0:01:11.3]} 26... Bxg4 {[%clk 0:00:36.6]} 27. fxg4 {[%clk 0:01:07.8]} 27... f3
{[%clk 0:00:37.5]} 28. Bxf3 {[%clk 0:01:08.3]} 28... Qh2+ {[%clk 0:00:37.8]} 29.
Kb3 {[%clk 0:01:08.6]} 29... Bxc3 {[%clk 0:00:37.4]} 30. bxc3 {[%clk 0:01:06]}
30... Qd2 {[%clk 0:00:37.9]} 31. Rd1 {[%clk 0:00:41.7]} 31... Qe3 {[%clk
0:00:25.6]} 32. Bg2 {[%clk 0:00:21.9]} 32... Rxb5 {[%clk 0:00:15.9]} 33. Qxb5
{[%clk 0:00:20.7]} 33... Rxc3+ {[%clk 0:00:16.4]} 34. Kb2 {[%clk 0:00:17.9]}
34... Rxa3 {[%clk 0:00:16.2]} 35. Qb4 {[%clk 0:00:18.2]} 35... Ra6 {[%clk
0:00:11.1]} 36. Rd4 {[%clk 0:00:15.3]} 36... Qf2+ {[%clk 0:00:07.3]} 37. Qd2
{[%clk 0:00:15.3]} 37... Rb6+ {[%clk 0:00:07]} 38. Kc3 {[%clk 0:00:15.5]} 38...
Qg1 {[%clk 0:00:05.3]} 39. Rc4 {[%clk 0:00:14]} 39... Qa1+ {[%clk 0:00:04.6]}
40. Kd3 {[%clk 0:00:14.6]} 40... Rb3+ {[%clk 0:00:04.1]} 41. Rc3 {[%clk
0:00:13.7]} 41... Qa6+ {[%clk 0:00:03.1]} 42. Ke3 {[%clk 0:00:13.4]} 42... Qb6+
{[%clk 0:00:02.5]} 43. Kf4 {[%clk 0:00:12.8]} 43... Rb2 {[%clk 0:00:02.1]} 44.
Rc2 {[%clk 0:00:12.3]} 1-0

[Event "Early-Titled-Tuesday-Blitz-January-16-2024"]
[Site "Chess.com"]
[Date "2024.01.16"]
[Round "1"]
[White "viktorskliarov"]
[Black "IngOscarArdila"]
[Result "1-0"]
[WhiteElo "2676"]
[BlackElo "2352"]
[TimeControl "180+1"]
[EndTime "8:07:54 PST"]
[Termination "viktorskliarov won by resignation"]

1. e4 {[%clk 0:03:00.9]} 1... e5 {[%clk 0:02:58.1]} 2. Nc3 {[%clk 0:02:59.7]}
2... Nf6 {[%clk 0:02:58]} 3. Bc4 {[%clk 0:02:57.2]} 3... Bb4 {[%clk 0:02:56.1]}
4. d3 {[%clk 0:02:53.3]} 4... d6 {[%clk 0:02:55.4]} 5. Ne2 {[%clk 0:02:52.7]}
5... Bg4 {[%clk 0:02:53.7]} 6. O-O {[%clk 0:02:51.7]} 6... Nbd7 {[%clk
0:02:53.8]} 7. h3 {[%clk 0:02:49.3]} 7... Bh5 {[%clk 0:02:53.6]} 8. Bd2 {[%clk
0:02:42.8]} 8... O-O {[%clk 0:02:53.2]} 9. a3 {[%clk 0:02:41.7]} 9... Ba5 {[%clk
0:02:53.1]} 10. b4 {[%clk 0:02:37.9]} 10... Bb6 {[%clk 0:02:53.2]} 11. Na4
{[%clk 0:02:38.2]} 11... c6 {[%clk 0:02:39.6]} 12. Nxb6 {[%clk 0:02:37.7]} 12...
axb6 {[%clk 0:02:38.9]} 13. g4 {[%clk 0:02:11]} 13... Bg6 {[%clk 0:02:35.6]} 14.
Nc3 {[%clk 0:02:09.2]} 14... b5 {[%clk 0:02:06.5]} 15. Bb3 {[%clk 0:02:07.8]}
15... Re8 {[%clk 0:02:06.8]} 16. f4 {[%clk 0:01:53.9]} 16... exf4 {[%clk
0:02:06.4]} 17. Bxf4 {[%clk 0:01:54.5]} 17... Qe7 {[%clk 0:01:58.5]} 18. Kg2
{[%clk 0:01:49.6]} 18... h5 {[%clk 0:01:51.5]} 19. g5 {[%clk 0:01:42.7]} 19...
Nh7 {[%clk 0:01:50.6]} 20. Qd2 {[%clk 0:01:32.6]} 20... Ne5 {[%clk 0:01:48]} 21.
Nd1 {[%clk 0:01:16.3]} 21... c5 {[%clk 0:01:12.9]} 22. Bd5 {[%clk 0:01:12.1]}
22... Nf8 {[%clk 0:01:08.5]} 23. Ne3 {[%clk 0:01:03.6]} 23... Ne6 {[%clk
0:01:07.6]} 24. Nf5 {[%clk 0:01:03.1]} 24... Nxf4+ {[%clk 0:00:58.1]} 25. Qxf4
{[%clk 0:01:01.7]} 25... Qf8 {[%clk 0:00:58.6]} 26. Nh4 {[%clk 0:00:53.4]} 26...
Kh7 {[%clk 0:00:43]} 27. Bxb7 {[%clk 0:00:49.5]} 27... Rab8 {[%clk 0:00:37.1]}
28. Bd5 {[%clk 0:00:49.2]} 28... Qe7 {[%clk 0:00:35.1]} 29. Rf2 {[%clk
0:00:47.4]} 29... Rec8 {[%clk 0:00:24.3]} 30. Raf1 {[%clk 0:00:46.5]} 30... Rc7
{[%clk 0:00:22.9]} 31. bxc5 {[%clk 0:00:34.6]} 31... dxc5 {[%clk 0:00:20.6]} 32.
Nf3 {[%clk 0:00:32.8]} 32... Re8 {[%clk 0:00:17.8]} 33. Nxe5 {[%clk 0:00:31.7]}
33... Qxe5 {[%clk 0:00:18.7]} 34. Qxe5 {[%clk 0:00:30.9]} 34... Rxe5 {[%clk
0:00:19.6]} 35. h4 {[%clk 0:00:31.4]} 35... b4 {[%clk 0:00:18.5]} 36. axb4
{[%clk 0:00:28]} 36... cxb4 {[%clk 0:00:18.8]} 37. Rb1 {[%clk 0:00:28.3]} 37...
f6 {[%clk 0:00:12.2]} 38. gxf6 {[%clk 0:00:26.3]} 38... gxf6 {[%clk 0:00:12.4]}
39. Rxf6 {[%clk 0:00:26.4]} 39... Rg7 {[%clk 0:00:11.9]} 40. Kf2 {[%clk
0:00:25.9]} 40... Be8 {[%clk 0:00:10.2]} 41. Rxb4 {[%clk 0:00:22]} 41... Ree7
{[%clk 0:00:08.8]} 42. Rbb6 {[%clk 0:00:17.8]} 42... Rg4 {[%clk 0:00:08.2]} 43.
Rh6+ {[%clk 0:00:17.9]} 43... Kg7 {[%clk 0:00:08.5]} 44. Rhe6 {[%clk 0:00:16.6]}
44... Rxe6 {[%clk 0:00:05.2]} 45. Rxe6 {[%clk 0:00:15.9]} 45... Bf7 {[%clk
0:00:05.2]} 46. Re7 {[%clk 0:00:16.1]} 46... Rf4+ {[%clk 0:00:04.4]} 47. Ke3
{[%clk 0:00:16.5]} 47... Rf1 {[%clk 0:00:04.1]} 48. Rxf7+ {[%clk 0:00:16.9]}
48... Rxf7 {[%clk 0:00:04]} 49. Bxf7 {[%clk 0:00:17.8]} 49... Kxf7 {[%clk
0:00:04.8]} 50. Kf4 {[%clk 0:00:18.5]} 50... Ke6 {[%clk 0:00:05.3]} 51. c4
{[%clk 0:00:19]} 51... Kd6 {[%clk 0:00:05.5]} 52. Kg5 {[%clk 0:00:19.2]} 1-0